bitfinex/quotes_ETHUSD_20250322
["timestamp","ask_amount","ask_price","bid_price","bid_amount"]
[1742612605611,5.04066,1983.9,1983.6,10.08236]
[1742612606109,5.04066,1983.9,1983.6,5.04115]
[1742612606538,5.85207,1984.0,1983.6,10.0823]
[1742612606742,5.04057,1983.9,1983.6,5.04115]
[1742612612425,10.08129,1983.9,1983.6,5.04115]
[1742612614155,10.08129,1983.9,1983.5,16.29628]
[1742612614563,10.08129,1983.9,1983.5,47.99172]
[1742612617891,10.08129,1983.9,1983.5,42.95024]
[1742612618659,5.04087,1983.8,1983.5,42.95024]
[1742612621987,5.04087,1983.8,1983.5,37.9088]
[1742612622886,5.04087,1983.8,1983.5,42.95039]
[1742612623484,10.08186,1983.8,1983.5,37.9088]
[1742612623672,5.04087,1983.8,1983.5,37.9088]
[1742612624189,5.04087,1983.8,1983.5,11.2548]
[1742612625193,7.3639832,1983.6,1983.5,5.99]
[1742612627310,8.1510832,1983.6,1983.5,5.99]
[1742612628294,8.1510832,1983.6,1983.4,26.654]
[1742612628295,5.04159,1983.5,1983.4,26.654]
[1742612628593,7.3642432,1983.5,1983.4,26.654]
[1742612632099,5.0421,1983.3,1983.2,5.99]
[1742612632600,5.0421,1983.3,1983.1,0.01]
[1742612633392,5.04235,1983.2,1983.1,0.01]
[1742612635092,5.0421,1983.3,1983.1,0.01]
[1742612635301,5.0421,1983.3,1983.1,0.6148]
[1742612639100,5.04235,1983.2,1983.1,0.01]
[1742612645129,5.0421,1983.3,1983.1,0.01]
[1742612645418,10.08437,1983.3,1983.1,0.01]
[1742612645716,5.0421,1983.3,1983.1,0.01]
[1742612646204,10.08439,1983.3,1983.1,0.01]
[1742612646405,5.86825,1983.2,1983.1,0.01]
[1742612646614,8.1909032,1983.2,1983.1,0.01]
[1742612647089,0.8259,1982.7,1982.1,0.38109978]
[1742612647285,5.04805,1981.0,1980.6,5.04889]
[1742612647597,5.04805,1981.0,1980.1,0.01]
[1742612647598,5.04801,1981.0,1980.5,3.2e-06]
[1742612647774,5.04872,1980.7,1980.6,5.225]
[1742612647980,5.04567,1981.9,1980.9,0.1]
[1742612648217,5.04413,1982.5,1981.8,4.6453064]
[1742612648526,5.04382,1982.7,1982.3,2.3226532]
[1742612648811,5.3226532,1982.8,1982.0,2.3226532]
[1742612648971,10.3663132,1982.7,1981.9,28.9826532]
[1742612649177,3.0,1982.7,1982.2,2.3226532]
[1742612649378,0.8259,1983.0,1982.3,2.3226532]
[1742612649608,0.96876564,1983.1,1982.8,5.04337]
[1742612649903,5.86814,1983.3,1982.8,26.662]
[1742612650104,0.47022586,1983.0,1982.8,26.662]
[1742612651172,0.47022586,1982.9,1982.8,26.662]
[1742612652507,8.04279,1983.1,1982.8,26.662]
[1742612652685,3.0,1983.1,1982.8,26.662]
[1742612652892,0.3,1983.0,1982.8,26.662]
[1742612653378,0.8259,1983.3,1982.9,5.04289]
[1742612654510,5.86801,1983.3,1982.8,37.15935]
[1742612654889,5.7964046,1982.9,1982.8,37.15935]
[1742612658084,5.7964046,1982.9,1982.8,32.116]
[1742612658417,3.3122312,1982.9,1982.8,32.116]
[1742612658784,3.3122312,1982.9,1982.8,37.15937]
[1742612659513,3.3122312,1982.9,1982.8,41.379659]
[1742612664928,3.3122312,1982.9,1982.8,47.369659]
[1742612665637,0.8259,1983.3,1982.9,5.0431]
[1742612665788,0.8259,1983.3,1982.9,5.04298]
[1742612665993,9.48700882,1983.6,1982.9,5.04298]
[1742612665994,3.87449778,1983.6,1982.9,5.04298]
[1742612666203,0.7987,1983.6,1983.0,15.41152578]
[1742612666532,0.7987,1983.6,1983.2,10.08456]
[1742612666738,0.7987,1983.6,1983.2,10.41124]
[1742612667233,0.47055872,1983.5,1983.2,10.41124]
[1742612668262,0.47055872,1983.4,1983.2,10.41124]
[1742612669247,0.47055872,1983.4,1983.3,26.662]
[1742612669456,0.7987,1983.6,1983.3,26.662]
[1742612671046,0.47046129,1983.5,1983.3,26.662]
[1742612671851,0.47046129,1983.5,1983.3,31.70402]
[1742612672391,0.7987,1983.6,1983.3,31.70402]
[1742612673045,0.7987,1983.6,1983.3,36.74604]
[1742612673512,0.7987,1983.6,1983.3,31.70402]
[1742612674019,3.87449778,1983.8,1983.4,5.04171]
[1742612674837,0.7948,1983.9,1983.3,38.81786111]
[1742612675148,0.47022097,1983.7,1983.5,5.04142]
[1742612676560,0.7948,1983.9,1983.5,5.04142]
[1742612677823,0.7948,1983.9,1983.5,10.0829]
[1742612678431,0.7948,1983.9,1983.6,5.04131]
[1742612679563,0.7948,1983.9,1983.5,10.6054]
[1742612680161,0.7948,1983.9,1983.6,5.04133]
[1742612680630,0.7948,1983.9,1983.6,10.32633]
[1742612681674,0.7948,1983.9,1983.6,10.32622]
[1742612681827,0.7948,1983.9,1983.7,5.04108]
[1742612682034,0.8244,1984.3,1983.8,5.04082]
[1742612682230,0.8244,1984.3,1983.9,5.04056]
[1742612682847,0.8244,1984.3,1983.9,10.08102]
[1742612683069,1.79822578,1984.3,1983.9,10.08102]
[1742612683873,1.79822578,1984.3,1983.9,5.04046]
[1742612684360,1.79822578,1984.3,1984.0,26.657]
[1742612687275,0.8244,1984.3,1984.0,31.69712]
[1742612687490,3.87449778,1984.4,1984.1,5.04005]
[1742612687843,3.87449778,1984.4,1984.1,10.08004]
[1742612688039,0.7536,1984.5,1984.2,5.0398]
[1742612688477,0.7536,1984.5,1984.2,5.03959]
[1742612688876,5.79363675,1984.9,1984.4,5.03921]
[1742612689045,9.66813453,1984.9,1984.4,15.32241]
[1742612689383,9.66623778,1984.9,1984.4,15.32241]
[1742612689599,9.66623778,1984.9,1984.4,15.32238]
[1742612689801,0.7536,1984.9,1984.5,5.03889]
[1742612690085,9.66566778,1985.1,1984.6,5.542519]
[1742612690246,9.66566778,1985.1,1984.6,10.07727]
[1742612690442,4.62809778,1985.1,1984.7,5.0385]
[1742612690663,4.62809778,1985.1,1984.8,26.653]
[1742612691270,0.7536,1985.1,1984.8,26.653]
[1742612691455,3.0,1985.2,1984.8,31.69125]
[1742612691959,10.7681433,1985.3,1984.8,31.69113]
[1742612692159,12.34863763,1985.3,1984.8,31.69113]
[1742612692357,5.0373,1985.2,1984.8,31.69113]
[1742612693575,12.34863763,1985.3,1984.8,31.69113]
[1742612694367,17.38584763,1985.3,1984.8,31.69113]
[1742612694913,12.34863763,1985.3,1984.8,31.69113]
[1742612695105,10.7681433,1985.3,1984.8,31.69113]
[1742612695399,10.7681433,1985.3,1984.9,5.03794]
[1742612695575,5.7310933,1985.3,1984.9,5.03794]
[1742612695894,10.7682133,1985.3,1984.8,41.94732]
[1742612696098,10.7682133,1985.3,1984.9,5.038]
[1742612697796,10.7682133,1985.3,1984.8,36.90913]
[1742612697997,10.7682133,1985.3,1984.8,41.94727]
[1742612698167,15.8054033,1985.3,1984.8,36.90913]
[1742612699198,10.7682133,1985.3,1984.8,36.90913]
[1742612699381,15.8054333,1985.3,1984.8,36.90913]
[1742612699582,17.68597663,1985.3,1984.8,36.90913]
[1742612699792,12.64875663,1985.3,1984.8,36.90913]
[1742612699992,12.64875663,1985.3,1984.9,5.038]
[1742612700194,17.68593663,1985.3,1984.9,5.038]
[1742612700514,12.64875663,1985.3,1984.9,5.038]
[1742612700900,17.68595663,1985.3,1984.8,36.90913]
[1742612701206,12.64875663,1985.3,1984.8,36.90913]
[1742612701406,17.68595663,1985.3,1984.8,41.94728]
[1742612701812,17.68595663,1985.3,1984.8,36.90913]
[1742612701975,5.03727,1985.2,1984.8,36.90913]
[1742612702504,8.91202778,1985.1,1984.8,26.653]
[1742612702696,8.91252778,1984.9,1984.8,26.653]
[1742612702892,0.8268,1985.0,1984.8,26.653]
[1742612703111,3.87449778,1985.1,1984.8,31.69103]
[1742612703610,3.87449778,1985.1,1984.8,26.653]
[1742612703795,8.91203778,1985.1,1984.8,26.653]
[1742612704609,13.94973778,1985.1,1984.8,26.653]
[1742612704937,5.0378,1985.0,1984.8,26.653]
[1742612705125,9.73932778,1984.9,1984.8,26.653]
[1742612707409,12.73932778,1984.9,1984.8,26.653]
[1742612709189,0.8123,1984.7,1984.0,5.99]
[1742612709384,5.03981,1984.2,1984.1,26.644]
[1742612710310,5.03978,1984.3,1984.1,26.644]
[1742612710811,10.07949,1984.3,1984.1,26.644]
[1742612710978,5.03932,1984.4,1984.1,26.644]
[1742612711378,5.8519,1984.3,1984.1,26.644]
[1742612711681,5.03981,1984.2,1984.1,26.644]
[1742612712594,5.8519,1984.3,1984.1,26.644]
[1742612713017,10.89161,1984.3,1984.1,26.644]
[1742612713420,5.8519,1984.3,1984.1,26.644]
[1742612714310,10.89167,1984.3,1984.1,26.644]
[1742612714699,10.89165,1984.3,1984.1,26.644]
[1742612715077,5.03981,1984.2,1984.1,26.644]
[1742612716219,10.89156,1984.3,1984.1,26.644]
[1742612716411,5.03981,1984.2,1984.1,26.644]
[1742612721519,5.8519,1984.3,1984.1,26.644]
[1742612724994,0.8123,1984.3,1984.1,26.644]
[1742612725102,6.80893509,1984.6,1984.2,5.03969]
[1742612725311,6.80893509,1984.6,1984.2,10.07936]
[1742612726109,6.04743509,1984.6,1984.3,5.03947]
[1742612727625,11.08639509,1984.6,1984.2,5.03967]
[1742612727875,6.04743509,1984.6,1984.2,5.03967]
[1742612728568,11.08645509,1984.6,1984.2,5.03967]
[1742612729177,5.03905,1984.5,1984.2,5.03967]
[1742612731734,6.04743509,1984.6,1984.2,10.07935]
[1742612731933,6.04743509,1984.6,1984.3,5.03955]
[1742612732434,6.04743509,1984.6,1984.2,5.03967]
[1742612733576,5.03906,1984.5,1984.2,5.03967]
[1742612743374,5.86306,1984.5,1984.2,5.03967]
[1742612744172,5.86306,1984.5,1984.3,26.647]
[1742612746270,10.9023,1984.5,1984.3,26.647]
[1742612746480,5.86306,1984.5,1984.3,26.647]
[1742612750799,5.0393,1984.4,1984.3,26.647]
[1742612752402,5.0393,1984.4,1984.2,26.647]
[1742612753904,10.07876,1984.4,1984.2,26.647]
[1742612754104,5.0393,1984.4,1984.2,26.647]
[1742612755705,5.86305,1984.5,1984.2,31.68668]
[1742612757194,10.90225,1984.5,1984.2,26.647]
[1742612757612,5.03939,1984.4,1984.2,26.647]
[1742612758209,10.90225,1984.5,1984.2,26.647]
[1742612759209,10.9023,1984.5,1984.2,26.647]
[1742612759600,5.86305,1984.5,1984.2,26.647]
[1742612759822,10.90226,1984.5,1984.2,26.647]
[1742612761217,5.0393,1984.4,1984.2,26.647]
[1742612763526,5.86305,1984.5,1984.2,26.647]
[1742612763734,10.90228,1984.5,1984.2,26.647]
[1742612764031,5.86305,1984.5,1984.2,26.647]
[1742612764933,10.90225,1984.5,1984.2,26.647]
[1742612765099,5.86305,1984.5,1984.2,26.647]
[1742612765420,11.72070907,1984.5,1984.2,26.647]
[1742612765620,6.68150907,1984.5,1984.2,26.647]
[1742612766331,6.68150907,1984.5,1984.2,31.68677]
[1742612766516,7.36036071,1984.6,1984.2,31.68673]
[1742612767010,5.03882,1984.6,1984.2,31.68673]
[1742612768326,5.03905,1984.5,1984.2,31.68673]
[1742612771122,5.03905,1984.5,1984.3,26.647]
[1742612772121,10.0783,1984.5,1984.3,26.647]
[1742612772316,11.31828407,1984.5,1984.3,26.647]
[1742612772524,6.27903407,1984.5,1984.3,26.647]
[1742612774649,11.31828407,1984.5,1984.3,26.647]
[1742612775341,11.31824407,1984.5,1984.3,26.647]
[1742612775526,6.27903407,1984.5,1984.3,26.647]
[1742612777653,11.31824407,1984.5,1984.3,26.647]
[1742612778066,6.27903407,1984.5,1984.3,26.647]
[1742612778252,11.31823407,1984.5,1984.3,26.647]
[1742612779063,6.27903407,1984.5,1984.3,26.647]
[1742612779252,11.31825407,1984.5,1984.3,26.647]
[1742612779656,6.27903407,1984.5,1984.3,26.647]
[1742612780046,11.31825407,1984.5,1984.3,26.647]
[1742612780970,0.6890867,1984.4,1984.3,26.647]
[1742612781265,11.04996741,1984.4,1983.9,5.99]
[1742612781465,11.04996741,1984.4,1983.7,5.04099]
[1742612781466,5.04059,1983.9,1983.6,42.59529]
[1742612781831,10.08132,1983.9,1983.6,42.59529]
[1742612782667,13.17196071,1983.9,1983.6,11.03129]
[1742612782845,13.17196071,1983.9,1983.6,37.551]
[1742612783164,13.17196071,1983.9,1983.6,32.637]
[1742612783970,13.17196071,1983.9,1983.6,5.99]
[1742612784270,13.17196071,1983.9,1983.6,32.639]
[1742612784472,8.13123071,1983.9,1983.6,32.639]
[1742612784644,3.09064071,1983.9,1983.6,37.68018]
[1742612784849,5.04036,1984.0,1983.6,37.68018]
[1742612785053,0.7691,1984.1,1983.8,5.04069]
[1742612785370,5.04045,1984.0,1983.7,5.04091]
[1742612786271,10.08091,1984.0,1983.7,5.04091]
[1742612786472,5.04059,1983.9,1983.6,37.68029]
[1742612786774,10.08132,1983.9,1983.6,37.68029]
[1742612787071,5.04059,1983.9,1983.6,37.68029]
[1742612787639,5.04059,1983.9,1983.6,42.58329]
[1742612790176,10.08132,1983.9,1983.6,42.58329]
[1742612790553,7.36213071,1983.9,1983.6,42.58329]
[1742612791069,5.04059,1983.9,1983.6,42.58329]
[1742612792069,10.08131,1983.9,1983.6,42.58329]
[1742612792476,12.40285071,1983.9,1983.6,37.542]
[1742612793185,7.36213071,1983.9,1983.6,37.542]
[1742612794089,5.04059,1983.9,1983.6,42.58325]
[1742612794791,5.04059,1983.9,1983.6,42.58322]
[1742612797397,7.36191071,1984.0,1983.6,42.58322]
[1742612797587,8.13075071,1984.1,1983.7,5.04086]
[1742612798389,7.36187071,1984.0,1983.6,42.58333]
[1742612798589,5.04066,1983.9,1983.6,42.58333]
[1742612799390,7.36220071,1983.9,1983.6,42.58333]
[1742612799695,5.04066,1983.9,1983.6,42.58333]
[1742612802373,5.04066,1983.9,1983.6,37.542]
[1742612802708,10.08141,1983.9,1983.6,37.542]
[1742612802994,5.04066,1983.9,1983.6,37.542]
[1742612803576,5.04084,1983.8,1983.6,37.542]
[1742612803893,5.04108,1983.7,1983.6,37.542]
[1742612804114,9.13651271,1983.7,1983.6,5.99]
[1742612804318,5.80754,1983.4,1983.3,26.654]
[1742612805215,8.12908071,1983.4,1983.3,26.654]
[1742612805602,5.80754,1983.4,1983.3,26.654]
[1742612806415,8.12908071,1983.4,1983.3,26.654]
[1742612811030,8.12908071,1983.4,1982.9,5.04311]
[1742612811031,0.8318,1983.1,1982.9,37.509]
[1742612811201,8.19606071,1983.1,1982.9,37.509]
[1742612811512,13.23884071,1983.1,1982.9,37.509]
[1742612812012,5.04286,1983.0,1982.9,26.657]
[1742612812220,13.23886071,1983.1,1982.9,26.657]
[1742612812720,8.19606071,1983.1,1982.9,26.657]
[1742612813200,5.04286,1983.0,1982.9,26.657]
[1742612813587,5.87452,1983.1,1982.9,26.657]
[1742612813790,7.36391071,1983.2,1982.9,26.657]
[1742612814288,7.36391071,1983.2,1982.9,31.7001]
[1742612814715,7.36391071,1983.2,1982.9,26.657]
[1742612814920,12.40645071,1983.2,1982.9,26.657]
[1742612815230,8.19552071,1983.3,1983.0,5.04286]
[1742612815525,9.65096689,1983.3,1983.0,5.04286]
[1742612817216,14.69321689,1983.3,1983.0,5.04286]
[1742612817599,9.65096689,1983.3,1983.0,5.04286]
[1742612819325,4.60878689,1983.3,1983.0,5.04286]
[1742612819730,4.60878689,1983.3,1983.0,10.08561]
[1742612820037,2.32154071,1983.4,1983.1,5.0425]
[1742612820398,7.36340071,1983.4,1983.1,5.0425]
[1742612820598,2.32154071,1983.3,1983.1,5.0425]
[1742612821014,2.32154071,1983.3,1983.0,5.04286]
[1742612821935,2.32154071,1983.3,1983.0,5.04277]
[1742612822338,2.32154071,1983.3,1983.0,10.08553]
[1742612822505,2.32154071,1983.3,1983.0,5.04276]
[1742612823927,7.36365071,1983.3,1983.0,5.04276]
[1742612824127,2.32154071,1983.3,1983.0,5.04276]
[1742612824523,0.8318,1983.1,1983.0,4.836]
[1742612824927,7.36397071,1983.2,1983.0,4.836]
[1742612825113,5.87423,1983.2,1983.0,4.836]
[1742612825941,8.19577071,1983.2,1983.0,4.836]
[1742612826252,3.15334071,1983.2,1983.0,9.87884]
[1742612826400,0.8318,1983.2,1983.0,4.836]
[1742612829046,8.19571071,1983.2,1983.0,4.836]
[1742612831538,0.8318,1983.2,1983.0,4.836]
[1742612831739,2.32154071,1983.3,1983.0,9.87872]
[1742612831927,8.15883071,1983.4,1983.0,9.87872]
[1742612832131,8.73237541,1983.4,1983.1,5.04259]
[1742612832617,13.77437541,1983.4,1983.0,14.92142]
[1742612832817,2.32154071,1983.3,1983.0,9.8787]
[1742612834885,5.83675,1983.6,1983.2,5.04221]
[1742612835022,8.15846071,1983.6,1983.2,5.04221]
[1742612835227,14.11659598,1983.6,1983.2,5.04219]
[1742612835426,2.32154071,1983.5,1983.2,5.04219]
[1742612836730,7.36319071,1983.5,1983.2,5.04219]
[1742612836935,7.36339071,1983.4,1983.1,5.0784]
[1742612837159,8.15911071,1983.3,1983.0,15.86881]
[1742612837474,13.20136071,1983.3,1983.0,15.86881]
[1742612837814,5.04237,1983.2,1983.0,5.99]
[1742612838068,0.7954,1983.0,1982.9,26.657]
[1742612839864,5.04261,1983.1,1982.9,26.657]
[1742612840167,13.20184071,1983.2,1982.9,26.657]
[1742612840534,5.0424,1983.2,1982.9,31.7001]
[1742612842766,0.7954,1983.3,1982.9,26.657]
[1742612842970,3.0,1983.3,1983.0,5.04264]
[1742612843649,8.04215,1983.3,1983.0,5.04264]
[1742612843857,10.36369071,1983.3,1982.9,37.69001]
[1742612844365,5.04235,1983.2,1982.9,37.69001]
[1742612845239,5.04235,1983.2,1982.9,37.68999]
[1742612846968,5.04235,1983.2,1982.9,42.73297]
[1742612847169,5.04235,1983.2,1982.9,37.68998]
[1742612847681,5.04185,1983.4,1983.0,5.04272]
[1742612847880,5.04185,1983.4,1983.1,5.04258]
[1742612848285,5.04185,1983.4,1983.1,5.04247]
[1742612848493,5.04185,1983.4,1983.1,31.74137]
[1742612848647,13.87054,1983.5,1983.1,36.53731]
[1742612849081,13.87054,1983.5,1983.1,41.57978]
[1742612849888,13.87054,1983.5,1983.1,41.57979]
[1742612850190,5.04186,1983.4,1983.1,36.53731]
[1742612854145,10.08388,1983.4,1983.1,31.4949]
[1742612854477,12.40542071,1983.4,1983.1,31.459]
[1742612855086,12.4028996,1983.4,1983.1,31.459]
[1742612855762,7.3608796,1983.4,1983.1,36.50158]
[1742612856188,5.03933889,1983.4,1983.1,36.50158]
[1742612856787,10.08132889,1983.4,1983.1,31.459]
[1742612858872,5.04214,1983.3,1983.1,31.459]
[1742612865873,5.82886,1983.5,1983.1,38.36317504]
[1742612866073,5.04176,1983.5,1983.1,43.40563504]
[1742612866292,10.08352,1983.5,1983.1,43.40563504]
[1742612866697,5.04176,1983.5,1983.1,43.40563504]
[1742612867269,10.08353,1983.5,1983.1,43.40563504]
[1742612867496,7.36330071,1983.5,1983.1,38.36317504]
[1742612867810,5.04193,1983.4,1983.1,36.50135]
[1742612868411,10.08392,1983.4,1983.1,36.50135]
[1742612869216,5.04213,1983.3,1983.1,31.459]
[1742612869375,5.86953,1983.3,1983.1,31.459]
[1742612874938,0.8274,1983.3,1983.1,31.459]
[1742612875133,5.0419,1983.4,1983.1,31.459]
[1742612875942,10.08391,1983.4,1983.1,31.459]
[1742612876452,10.08389,1983.4,1983.1,31.459]
[1742612876601,5.04211,1983.3,1983.1,31.459]
[1742612879614,10.08437,1983.3,1983.1,31.459]
[1742612879953,5.04211,1983.3,1983.1,31.459]
[1742612882046,5.04188,1983.4,1983.1,36.50149]
[1742612882348,5.04188,1983.4,1983.1,45.698405]
[1742612882845,5.04188,1983.4,1983.1,40.655915]
[1742612883043,5.04188,1983.4,1983.1,36.50148]
[1742612885977,7.36342071,1983.4,1983.1,31.408]
[1742612886160,5.04211,1983.3,1983.1,31.408]
[1742612888557,5.04188,1983.4,1983.1,36.4506]
[1742612888763,5.86013,1983.5,1983.1,36.45047]
[1742612888961,5.04137,1983.6,1983.2,8.723287]
[1742612889170,5.04137,1983.6,1983.2,14.713147]
[1742612889540,5.04137,1983.6,1983.3,5.042]
[1742612890267,8.14716071,1983.7,1983.3,10.08392]
[1742612890470,8.14716071,1983.7,1983.3,5.04192]
[1742612890675,5.04136,1983.6,1983.3,5.04192]
[1742612891258,7.36290071,1983.6,1983.3,5.04192]
[1742612894250,7.36290071,1983.6,1983.3,5.04209]
[1742612898297,2.32154071,1983.6,1983.3,10.08407]
[1742612898493,5.04138,1983.6,1983.3,5.04198]
[1742612898797,7.36292071,1983.6,1983.3,5.04198]
[1742612899184,5.04138,1983.6,1983.3,5.04198]
[1742612903900,8.14716071,1983.7,1983.3,10.08391]
[1742612904099,9.08144925,1983.7,1983.3,5.04193]
[1742612904394,9.08144925,1983.7,1983.4,5.04184]
[1742612905102,4.04032925,1983.7,1983.4,5.04184]
[1742612905321,3.0,1983.8,1983.5,5.04156]
[1742612905599,14.20894869,1983.9,1983.5,5.04156]
[1742612906168,2.32154071,1983.8,1983.4,5.0417]
[1742612906776,7.36245071,1983.8,1983.4,10.08339]
[1742612907094,7.36245071,1983.8,1983.5,5.04156]
[1742612907398,6.84666798,1983.9,1983.5,10.08298]
[1742612907701,0.7955,1983.9,1983.7,5.04087]
[1742612908000,10.36196071,1984.0,1983.7,5.04087]
[1742612909507,7.36196071,1984.0,1983.7,5.04087]
[1742612910214,3.11704071,1984.1,1983.7,1.60722]
[1742612910417,3.11704071,1984.1,1983.8,10.08132]
[1742612910910,8.15714071,1984.1,1983.7,6.64818]
[1742612911114,2.32154071,1984.0,1983.7,6.64818]
[1742612911289,12.40247071,1984.0,1983.7,6.64818]
[1742612911490,7.36200071,1984.0,1983.7,6.64818]
[1742612911892,5.04091,1983.8,1983.7,4.722]
[1742612912388,7.36245071,1983.8,1983.6,5.99]
[1742612912727,8.15812071,1983.7,1983.6,5.99]
[1742612913814,5.04159,1983.5,1983.4,26.66]
[1742612913975,9.16692671,1983.5,1983.4,26.66]
[1742612915000,9.16692671,1983.5,1982.9,4.726]
[1742612915001,5.8383,1983.1,1982.9,4.726]
[1742612915189,5.8383,1983.1,1982.8,32.647]
[1742612915391,5.04289,1983.0,1982.8,37.373]
[1742612916484,5.04311,1982.9,1982.8,26.657]
[1742612918126,5.80291,1982.9,1982.8,26.657]
[1742612920310,5.04311,1982.9,1982.8,26.657]
[1742612920621,5.04289,1983.0,1982.8,26.657]
[1742612921309,10.08591,1983.0,1982.8,26.657]
[1742612921689,5.04289,1983.0,1982.8,26.657]
[1742612922791,0.7598,1983.3,1982.8,30.335002]
[1742612922995,5.04236,1983.2,1982.8,35.378362]
[1742612923333,5.04262,1983.1,1982.8,35.378362]
[1742612923900,5.04289,1983.0,1982.8,26.657]
[1742612924100,5.80291,1982.9,1982.8,26.657]
[1742612931456,5.04289,1983.0,1982.8,26.657]
[1742612932246,5.04311,1982.9,1982.8,26.657]
[1742612932651,5.04311,1982.9,1982.6,5.04385]
[1742612932827,5.04311,1982.9,1982.6,9.790343]
[1742612934563,5.04347,1982.8,1982.6,4.746493]
[1742612934966,10.08698,1982.8,1982.5,42.42108]
[1742612935265,5.0437,1982.7,1982.5,32.656]
[1742612935470,5.04388,1982.6,1982.5,32.656]
[1742612935870,5.0437,1982.7,1982.5,32.656]
[1742612936878,10.08754,1982.7,1982.5,32.656]
[1742612937264,5.0437,1982.7,1982.5,32.656]
[1742612938976,5.04388,1982.6,1982.5,32.656]
[1742612940550,5.04388,1982.6,1982.5,26.666]
[1742612940879,5.0437,1982.7,1982.5,26.666]
[1742612941449,10.08751,1982.7,1982.5,26.666]
[1742612941783,5.0437,1982.7,1982.5,26.666]
[1742612942179,10.08751,1982.7,1982.5,26.666]
[1742612942368,5.0437,1982.7,1982.5,26.666]
[1742612942770,10.08754,1982.7,1982.5,26.666]
[1742612943293,5.04388,1982.6,1982.5,26.666]
[1742612944488,5.0437,1982.7,1982.5,26.666]
[1742612945054,10.08755,1982.7,1982.5,26.666]
[1742612945790,5.0437,1982.7,1982.5,26.666]
[1742612946601,5.8002,1982.8,1982.5,26.666]
[1742612946955,5.8002,1982.8,1982.4,5.04423]
[1742612947201,5.04365,1982.7,1982.4,5.04423]
[1742612947793,8.1257888,1982.8,1982.4,10.08846]
[1742612947976,5.8002,1982.8,1982.4,5.04423]
[1742612948176,5.80135,1983.0,1982.6,5.04369]
[1742612948362,12.4110088,1983.1,1982.7,5.04337]
[1742612948563,5.04289,1983.0,1982.7,5.04337]
[1742612948763,12.4109788,1983.1,1982.7,5.04337]
[1742612949111,7.3681988,1983.1,1982.8,0.0359]
[1742612949776,7.3681988,1983.1,1982.8,5.07924]
[1742612950162,5.04261,1983.1,1982.8,5.07924]
[1742612950462,12.4109788,1983.1,1982.8,0.0359]
[1742612951402,7.3681988,1983.1,1982.8,5.07925]
[1742612951609,7.3679888,1983.2,1982.9,5.04302]
[1742612951969,2.3255888,1983.2,1982.9,5.04291]
[1742612952278,7.3680188,1983.2,1982.9,5.04291]
[1742612952603,12.4105188,1983.2,1982.8,5.07913]
[1742612952802,12.4105188,1983.2,1982.8,10.12238]
[1742612953119,12.4105188,1983.2,1982.8,5.07913]
[1742612953996,5.04243,1983.2,1982.8,5.07913]
[1742612954195,5.04273,1983.1,1982.8,0.0359]
[1742612954416,10.08552,1983.1,1982.8,0.0359]
[1742612954619,5.04273,1983.1,1982.8,5.07925]
[1742612955427,7.3675088,1983.4,1983.0,5.04264]
[1742612955632,8.35285937,1983.4,1983.0,5.04264]
[1742612956137,13.39487937,1983.4,1983.0,5.04264]
[1742612956427,8.35285937,1983.4,1983.0,10.08539]
[1742612956611,8.35285937,1983.4,1983.0,5.04264]
[1742612956799,13.39486937,1983.4,1983.0,5.04264]
[1742612957319,15.11019631,1983.4,1983.0,5.04264]
[1742612957819,10.06818631,1983.4,1983.0,5.04264]
[1742612958700,7.74259751,1983.4,1983.1,5.07846]
[1742612959193,0.98535057,1983.4,1983.2,5.0423]
[1742612959402,0.98535057,1983.4,1983.1,10.12099]
[1742612959720,0.98535057,1983.4,1983.1,5.07841]
[1742612960614,2.3255888,1983.5,1983.2,5.04235]
[1742612961119,2.3255888,1983.5,1983.2,10.08457]
[1742612961287,7.3669688,1983.6,1983.2,10.08457]
[1742612961488,2.3255888,1983.6,1983.3,5.04191]
[1742612961819,14.16652011,1983.7,1983.3,10.08389]
[1742612962023,3.0839888,1983.7,1983.4,10.0835]
[1742612962227,11.1251088,1983.7,1983.4,5.04168]
[1742612962415,10.3667088,1983.7,1983.4,5.07758]
[1742612962618,3.0,1983.7,1983.4,10.11931]
[1742612963036,3.0,1983.7,1983.4,5.07758]
[1742612963191,10.3667088,1983.7,1983.4,5.07758]
[1742612964232,5.3255888,1983.7,1983.4,10.11931]
[1742612964433,7.3664488,1983.8,1983.4,10.11932]
[1742612964605,6.85251355,1983.9,1983.5,5.04147]
[1742612964804,7.3660288,1984.0,1983.6,5.04122]
[1742612964999,0.7945,1984.1,1983.7,0.0359]
[1742612965222,2.3255888,1984.2,1983.7,26.6999]
[1742612965403,13.1993888,1984.3,1983.9,5.04044]
[1742612965591,5.03909,1984.5,1984.1,5.04]
[1742612965815,5.03909,1984.5,1984.1,5.03993]
[1742612965816,13.1984388,1984.5,1984.1,5.03993]
[1742612966044,8.1591788,1984.5,1984.1,10.0799]
[1742612966216,8.7775614,1984.6,1984.2,5.03979]
[1742612966550,6.82526196,1984.9,1984.5,5.03905]
[1742612966858,7.3639788,1984.8,1984.5,5.03904]
[1742612967060,7.3639788,1984.8,1984.4,5.03912]
[1742612967248,5.03839,1984.8,1984.4,5.03912]
[1742612967411,3.0,1984.8,1984.5,5.03895]
[1742612967614,3.0,1984.8,1984.5,10.07789]
[1742612967947,3.0,1984.8,1984.5,5.03894]
[1742612968264,8.0384,1984.8,1984.4,5.03929]
[1742612968450,8.0384,1984.8,1984.4,10.07851]